Cogmind - Beta 9.4 @@@ ROGUE MODE // 2020.01.16 @ 05:23:30 // Winter2019/RPGLIKE Player: TehFrederick Result: Destroyed by Alpha 7 with Multirail Performance ------------- Evolutions (9) 4500 Regions Visited (19) 3800 Robots Destroyed (189) 945 Value Destroyed (8147) 8147 Prototype IDs (12) 240 Alien Tech Used (0) 0 Bonus (3690) 3690 TOTAL SCORE: 21322 Bonus ------- High Alert Combat Kills 1600 Follower Combat Kills 990 Built Enhanced Grunts 300 A7 Reached Mainframe 300 Met R17 at Cetus 500 Cogmind --------- Core Integrity 0/950 Matter 300/300 Energy 34/660 System Corruption 2% Temperature Cool (0) Movement Flying (28) Location -1/Command Parts ------- > --- POWER (3) -------- F-cell Engine Light Antimatter Reactor Light Quantum Reactor > --- PROPULSION (7) --- Field Propulsion Array Field Propulsion Array Q-thruster Q-thruster Q-thruster > --- UTILITY (11) ----- Advanced Signal Interpreter Long-range Terrain Scanner Advanced Melee Analysis Suite Advanced Melee Analysis Suite Microactuators Microactuators Advanced Actuator Array Advanced Reaction Control System Centrium Medium Armor Plating EM Disruption Field Advanced Force Field > --- WEAPON (5) ------- Lance Lance Plasma Lance Enhanced Force Lance Enhanced Force Lance > --- INVENTORY (2) ---- Protomatter-11 Peak State ------------ > --- POWER ------------ F-cell Engine Light Antimatter Reactor Light Quantum Reactor > --- PROPULSION ------- Field Propulsion Array Field Propulsion Array Q-thruster Q-thruster Q-thruster > --- UTILITY ---------- Advanced Signal Interpreter Long-range Terrain Scanner Advanced Melee Analysis Suite Advanced Melee Analysis Suite Microactuators Microactuators Advanced Actuator Array Advanced Reaction Control System Centrium Medium Armor Plating EM Disruption Field Advanced Force Field > --- WEAPON ----------- Lance Lance Plasma Lance Enhanced Force Lance Enhanced Force Lance > --- INVENTORY -------- Spear [Rating: 176] Favorites ----------- Power F-cell Engine Engine F-cell Engine Power Core Light Fission Core Reactor Light Antimatter Reactor Propulsion Cooled VTOL Module Wheel Compact Wheel Flight Unit Cooled VTOL Module Utility Microactuators Device Microactuators Processor Advanced Melee Analysis Suite Hackware Hacking Suite Protection Centrium Medium Armor Plating Weapon Spear Energy Gun EM Shotgun Energy Cannon Heavy Ion Cannon Ballistic Gun Gauss Rifle Ballistic Cannon Assault Cannon Launcher Grenade Launcher Impact Weapon Power Maul Slashing Weapon Greatsword Piercing Weapon Spear Build | -11 -10 -9 -8 -7 -7 -7 -6 -6 -6 -5 -5 -5 -5 -5 -4 -3 -2 -1 -1 ------- Run | Scr Mat Mat Mat Fac Was Fac Fac Was Fac Fac Ext Cet Arc Hub Fac Res Res Acc Com Slots Evolved 22 | 1 . 4 2 3 . 1 2 . 2 . 1 1 . 1 . 1 . 1 2 Power 2 | . . . . . . . 1 . . . . . . . . . . . 1 Propulsion 6 | . . 1 . 1 . 1 . . . . 1 . . . . 1 . . 1 Utility 10 | . . 1 1 2 . . 1 . 2 . . 1 . 1 . . . 1 . Weapon 4 | 1 . 2 1 . . . . . . . . . . . . . . . . Parts Attached 113 | 4 3 8 7 22 . 10 6 . 7 5 2 1 . 4 3 3 9 4 15 Power 18 | 1 . 1 . 3 . 1 3 . . 4 1 . . . . . 3 . 1 Engine 10 | 1 . 1 . 3 . 1 2 . . 1 . . . . . . 1 . . Core 4 | . . . . . . . 1 . . 3 . . . . . . . . . Reactor 4 | . . . . . . . . . . . 1 . . . . . 2 . 1 Propulsion 22 | 1 1 3 . 3 . 2 . . 2 1 1 . . 1 . 1 1 1 4 Treads . | . . . . . . . . . . . . . . . . . . . . Leg . | . . . . . . . . . . . . . . . . . . . . Wheel 1 | 1 . . . . . . . . . . . . . . . . . . . Hover . | . . . . . . . . . . . . . . . . . . . . Flight 21 | . 1 3 . 3 . 2 . . 2 1 1 . . 1 . 1 1 1 4 Utility 44 | . . 2 4 8 . 3 3 . 3 . . 1 . 3 3 2 5 3 4 Device 31 | . . 1 1 4 . 2 3 . 3 . . . . 1 2 2 5 3 4 Storage . | . . . . . . . . . . . . . . . . . . . . Processor 10 | . . 1 2 4 . 1 . . . . . . . 1 1 . . . . Hackware 1 | . . . 1 . . . . . . . . . . . . . . . . Protection 2 | . . . . . . . . . . . . 1 . 1 . . . . . Artifact . | . . . . . . . . . . . . . . . . . . . . Weapon 29 | 2 2 2 3 8 . 4 . . 2 . . . . . . . . . 6 Energy Gun 4 | . 1 2 1 . . . . . . . . . . . . . . . . Energy Cannon 1 | . . . . 1 . . . . . . . . . . . . . . . Ballistic Gun 5 | 2 . . 1 2 . . . . . . . . . . . . . . . Ballistic Cannon 2 | . . . 1 1 . . . . . . . . . . . . . . . Launcher 1 | . 1 . . . . . . . . . . . . . . . . . . Special Weapon . | . . . . . . . . . . . . . . . . . . . . Impact Weapon 1 | . . . . 1 . . . . . . . . . . . . . . . Slashing Weapon 6 | . . . . 2 . 2 . . 2 . . . . . . . . . . Piercing Weapon 9 | . . . . 1 . 2 . . . . . . . . . . . . 6 Special Melee Weapon . | . . . . . . . . . . . . . . . . . . . . Unidentified Prototypes 10 | . . . . . . 1 . . . 1 . 1 . . 2 1 1 . 3 Parts Lost 3 | . . . . 1 . 1 . . . . . . . 1 . . . . . Power . | . . . . . . . . . . . . . . . . . . . . Propulsion 1 | . . . . . . 1 . . . . . . . . . . . . . Utility 1 | . . . . . . . . . . . . . . 1 . . . . . Weapon 1 | . . . . 1 . . . . . . . . . . . . . . . Highest Loss Streak 1 | . . . . 1 . 1 . . . . . . . 1 . . . . . Average Slot Usage (%) 92 | . 78 92 91 92 92 92 92 94 93 94 94 95 95 95 92 95 92 89 90 Engine 6 | . 20 12 9 5 7 6 6 5 5 4 5 4 4 4 4 4 4 4 3 Core 1 | . . . . . . . . 5 5 5 4 . . . . . . . . Reactor 1 | . . . . . . . . . . . . 4 4 4 4 4 4 4 5 Flight 21 | . 4 24 18 22 21 23 24 23 22 21 24 24 23 22 22 26 23 20 18 Device 17 | . . 5 9 9 14 13 17 17 20 26 25 24 23 22 18 17 22 26 27 Processor 15 | . . 5 10 21 21 20 17 17 16 15 15 14 14 15 20 21 14 12 11 Protection 1 | . . . . . . . . . . . . . 4 4 4 4 4 4 3 Energy Gun 3 | . 4 30 28 6 . . . . . . . . . . . . . . . Ballistic Gun 2 | . 15 . 3 9 . . . . . . . . . . . . . . . Launcher 2 | . 18 12 9 1 . . . . . . . . . . . . . . . Impact Weapon 1 | . . . . 2 7 4 . . . . . . . . . . . . . Slashing Weapon 7 | . . . . 1 14 13 11 11 10 10 10 9 9 9 9 8 8 8 2 Piercing Weapon 7 | . . . . . 7 8 11 11 10 10 10 9 9 9 9 8 8 8 16 Naked Turns . | . . . . . . . . . . . . . . . . . . . . Heaviest Build 102 | 5 9 14 21 31 27 27 36 33 35 42 49 56 56 56 56 55 82 79 102 Greatest Support 104 | 26 26 20 20 32 32 41 37 37 39 46 53 58 58 58 58 68 77 81 104 Greatest Overweight (x) 1 | . . . 1 . . . . . 1 . . . . . . . 1 . 1 Average Overweight (x) . | . . . . . . . . . . . . . . . . . . . . Largest Inventory Capacity 2 | 2 2 2 2 2 2 2 2 2 2 2 2 2 2 2 2 2 2 2 2 Average Capacity 2 | 2 2 2 2 2 2 2 2 2 2 2 2 2 2 2 2 2 2 2 2 Most Carried 2 | 1 2 2 2 2 2 2 2 2 2 2 2 2 2 2 2 2 2 2 2 Average Carried 1 | . 1 . 1 1 2 1 1 2 1 1 . 1 2 1 1 1 1 1 1 Final Capacity 2 | 2 2 2 2 2 2 2 2 2 2 2 2 2 2 2 2 2 2 2 2 Final Carried 2 | 1 2 1 2 2 2 2 2 2 2 2 . 2 2 2 2 2 2 1 1 Class Distribution -------------------- 83% | Scout 6% | Mutant 3% | Generator-Scout Dominant Class ---------------- Mutant | -10/Materials Scout | -9/Materials Scout | -8/Materials Scout | -7/Factory Scout | -7/Waste Scout | -7/Factory Scout | -6/Factory Scout | -6/Waste Scout | -6/Factory Scout | -5/Factory Scout | -5/Extension Scout | -5/Cetus Commander-Scout | -5/Archives Scout | -5/Hub_04(d) Scout | -4/Factory Scout | -3/Research Scout | -2/Research Scout | -1/Access Scout | -1/Command Resources | -11 -10 -9 -8 -7 -7 -7 -6 -6 -6 -5 -5 -5 -5 -5 -4 -3 -2 -1 -1 ----------- Run | Scr Mat Mat Mat Fac Was Fac Fac Was Fac Fac Ext Cet Arc Hub Fac Res Res Acc Com Matter Collected 1972 | 230 98 186 136 583 . 129 60 10 58 . 96 10 . . 56 . 110 40 170 Remotely . | . . . . . . . . . . . . . . . . . . . . Salvage Created 8776 | . 319 518 249 1021 . 382 1041 . 275 . 1153 273 249 31 112 . 648 1164 1341 Parts 421 | . 15 36 17 45 . 18 29 . 20 . 44 26 12 7 7 . 23 41 81 Haulers Intercepted 13 | . . . 1 . . 2 4 . 2 . . . . . . . . 4 . Recyclers Shooed 2 | . . . . . . . 2 . . . . . . . . . . . . Parts Field Recycled . | . . . . . . . . . . . . . . . . . . . . Retrieved Matter . | . . . . . . . . . . . . . . . . . . . . Parts Self-Destructed . | . . . . . . . . . . . . . . . . . . . . Prevented . | . . . . . . . . . . . . . . . . . . . . Kills | -11 -10 -9 -8 -7 -7 -7 -6 -6 -6 -5 -5 -5 -5 -5 -4 -3 -2 -1 -1 ------- Run | Scr Mat Mat Mat Fac Was Fac Fac Was Fac Fac Ext Cet Arc Hub Fac Res Res Acc Com Combat Hostiles Destroyed 142 | . 9 15 8 18 . 3 7 . 6 . 15 10 3 1 3 . 6 12 26 Melee 93 | . . . . 1 . 3 7 . 6 . 15 10 3 1 3 . 6 12 26 Guns 25 | . 1 8 5 11 . . . . . . . . . . . . . . . Cannons 5 | . . . 2 3 . . . . . . . . . . . . . . . AOE 18 | . 8 6 1 3 . . . . . . . . . . . . . . . Classes Destroyed 15 | . 3 6 2 2 . . . . . . . . . . . . . . 2 Worker 6 | . . 1 . 2 . . . . 1 . . . . . . . . 1 1 Builder 3 | . . 1 1 1 . . . . . . . . . . . . . . . Hauler 13 | . . . 1 . . 2 4 . 2 . . . . . . . . 4 . Recycler 11 | . 3 1 . 2 . . 3 . . . 2 . . . . . . . . Operator 3 | . . . 1 . . 2 . . . . . . . . . . . . . Watcher 11 | . . 1 . 1 . 2 . . . . 2 1 . 1 . . 1 1 1 Swarmer 43 | . 6 . 3 . . . . . . . 4 5 . . . . . 5 20 Grunt 49 | . 3 12 3 12 . . 6 . 5 . 5 2 . . . . . 1 . Brawler 1 | . . 1 . . . . . . . . . . . . . . . . . Duelist 2 | . . 1 . 1 . . . . . . . . . . . . . . . Sentry 26 | . . 1 2 2 . 2 1 . 1 . 4 . 3 1 1 . 4 3 1 Hunter 14 | . . . . 2 . 1 . . . . 2 . . . 2 . 2 3 2 Programmer 1 | . . . . 1 . . . . . . . . . . . . . . . Cetus Guard 3 | . . . . . . . . . . . . 3 . . . . . . . Striker 2 | . . . . . . . . . . . . . . . . . . . 2 Executioner 1 | . . . . . . . . . . . . . . . . . . . 1 Best Kill Streak 11 | . 10 11 4 7 . 3 4 . 3 . 8 7 3 2 3 . 4 6 7 Combat Bots Only 10 | . 7 10 4 4 . 2 3 . 3 . 7 7 3 1 3 . 3 5 6 Max Kills in Single Turn 4 | . 4 3 2 2 . 1 1 . 1 . 1 3 1 1 1 . 1 1 2 Gunslinging . | . . . . . . . . . . . . . . . . . . . . Exploded 3 | . 3 3 1 2 . . . . . . . . . . . . . . . Melee 3 | . . . . 1 . 1 1 . 1 . 1 3 1 1 1 . 1 1 2 Uniques/NPCs Destroyed . | . . . . . . . . . . . . . . . . . . . . Combat | -11 -10 -9 -8 -7 -7 -7 -6 -6 -6 -5 -5 -5 -5 -5 -4 -3 -2 -1 -1 -------- Run | Scr Mat Mat Mat Fac Was Fac Fac Was Fac Fac Ext Cet Arc Hub Fac Res Res Acc Com Damage Taken 7729 | . 386 496 214 1142 . 122 167 . 347 . 1009 543 317 299 113 335 180 440 1619 Core 5995 | . 328 416 173 909 . 91 133 . 285 . 817 432 227 214 94 280 123 301 1172 Absorbed by Shields 1956 | . . . . . . . . . . . 202 267 . . . . 137 451 899 Redirected to Core 4938 | . 197 276 136 789 . 91 125 . 227 . 685 386 227 191 70 215 111 276 936 Core Remaining (%) 82 | 100 61 83 89 . . 73 . . 100 . . . . 71 100 62 87 . . Volleys Fired 137 | . 36 37 18 46 . . . . . . . . . . . . . . . Largest 5 | . 2 4 5 4 . . . . . . . . . . . . . . . Hottest 204 | . 75 160 204 174 . . . . . . . . . . . . . . . Shots Fired 326 | . 42 81 55 148 . . . . . . . . . . . . . . . Gun 268 | . 36 74 48 110 . . . . . . . . . . . . . . . Cannon 42 | . . . 4 38 . . . . . . . . . . . . . . . Launcher 16 | . 6 7 3 . . . . . . . . . . . . . . . . Special . | . . . . . . . . . . . . . . . . . . . . Kinetic 130 | . 34 . 8 88 . . . . . . . . . . . . . . . Thermal 48 | . . 16 16 16 . . . . . . . . . . . . . . . Explosive 16 | . 6 7 3 . . . . . . . . . . . . . . . . Electromagnetic 132 | . 2 58 28 44 . . . . . . . . . . . . . . . Robot Hit Streak 19 | . 3 19 13 18 . . . . . . . . . . . . . . . Robot Miss Streak 9 | . 4 3 2 9 . . . . . . . . . . . . . . . Penetration Max 1 | . . . . 1 . . . . . . . . . . . . . . . Secondary Targets 4 | . . 2 . 2 . . . . . . . . . . . . . . . Max Gunslinging Chain 1 | . . 1 . 1 . . . . . . . . . . . . . . . Shots Hit Robots 592 | . 18 59 36 97 . 27 43 . 17 1 67 41 10 4 11 . 41 52 68 Core Hits 315 | . 22 41 26 62 . 8 17 . 11 . 25 18 5 3 6 . 14 23 34 Critical Hits 23 | . . . . . . 1 2 . 1 . 1 3 1 . . . 2 5 7 Critical Kills 14 | . . . . . . . 1 . 1 . . 2 1 . . . . 3 6 Critical Parts Destroyed 8 | . . . . . . 1 1 . . . 1 1 . . . . 1 2 1 Melee Attacks 546 | . . . . 5 . 30 49 . 25 1 124 46 13 6 15 9 45 77 101 Impact 6 | . . . . 2 . 4 . . . . . . . . . . . . . Slashing 314 | . . . . 3 . 20 37 . 16 1 84 27 8 4 8 8 25 56 17 Piercing 226 | . . . . . . 6 12 . 9 . 40 19 5 2 7 1 20 21 84 Sneak Attacks 37 | . . . . . . 4 9 . 7 . 5 . . . . . 3 8 1 Combat Hostiles 6 | . . . . . . . 1 . 1 . 1 . . . . . 3 . . Follow-up Attacks 167 | . . . . . . 11 12 . 6 . 29 23 5 2 4 . 21 19 35 Damage Inflicted 29648 | . 649 1340 655 2207 . 1893 3417 . 1628 82 4163 2142 559 224 593 . 2435 3741 3920 Guns 2433 | . 125 728 372 1208 . . . . . . . . . . . . . . . Cannons 441 | . . . 93 348 . . . . . . . . . . . . . . . Explosions 1722 | . 524 612 190 396 . . . . . . . . . . . . . . . Melee 25052 | . . . . 255 . 1893 3417 . 1628 82 4163 2142 559 224 593 . 2435 3741 3920 Ramming . | . . . . . . . . . . . . . . . . . . . . Kinetic 1075 | . 125 . 116 834 . . . . . . . . . . . . . . . Thermal 385 | . . 139 66 180 . . . . . . . . . . . . . . . Explosive 1669 | . 524 559 190 396 . . . . . . . . . . . . . . . Electromagnetic 1467 | . . 642 283 542 . . . . . . . . . . . . . . . Impact 162 | . . . . 74 . 88 . . . . . . . . . . . . . Slashing 18007 | . . . . 181 . 1585 3016 . 1418 82 3418 1538 444 151 453 . 1733 3056 932 Piercing 6883 | . . . . . . 220 401 . 210 . 745 604 115 73 140 . 702 685 2988 Highest Corruption 3 | . . . 2 1 1 1 . . 3 . 1 1 1 1 . . . 2 2 Average Corruption 1 | . . . 2 1 1 1 . . 3 . 1 1 1 1 . . . 2 2 Corruption Purged . | . . . . . . . . . . . . . . . . . . . . Effects 27 | . . . . 3 . 7 . . 4 . . 1 1 . . . . 6 5 Message Errors 7 | . . . . 1 . 1 . . 1 . . . . . . . . 2 2 Matter Fused 2 | . . . . . . . . . 2 . . . . . . . . . . Energy Discharges 3 | . . . . . . 2 . . . . . . . . . . . . 1 Data Loss (minor) 6 | . . . . . . 2 . . 1 . . . 1 . . . . 1 1 Targeting Errors 9 | . . . . 2 . 2 . . . . . 1 . . . . . 3 1 Overload Shots . | . . . . . . . . . . . . . . . . . . . . Overflow Damage 2203 | . 3 21 . 44 . 452 521 . 152 47 539 99 . . 28 . 79 17 201 Projectiles . | . . . . . . . . . . . . . . . . . . . . Explosions 32 | . 3 21 . 8 . . . . . . . . . . . . . . . Melee 2171 | . . . . 36 . 452 521 . 152 47 539 99 . . 28 . 79 17 201 Knockbacks 6 | . . . 1 5 . . . . . . . . . . . . . . . Impact 1 | . . . . 1 . . . . . . . . . . . . . . . Kinetic 5 | . . . 1 4 . . . . . . . . . . . . . . . Secondary . | . . . . . . . . . . . . . . . . . . . . Self-Inflicted Damage 306 | . . 41 . 265 . . . . . . . . . . . . . . . Shots 4 | . . 1 . 3 . . . . . . . . . . . . . . . Rammed . | . . . . . . . . . . . . . . . . . . . . Targets Rammed . | . . . . . . . . . . . . . . . . . . . . Kicked . | . . . . . . . . . . . . . . . . . . . . Crushed . | . . . . . . . . . . . . . . . . . . . . Highest Temperature 286 | . . 83 171 286 . 24 . . 2 . 1 1 8 11 5 66 104 2 43 Average Temperature 49 | . . 35 44 84 . 17 . . 2 . 1 1 5 7 4 27 36 1 8 Received Heat Transfer 1386 | . 207 174 54 303 . 30 69 . 72 . 204 83 45 69 9 . 26 28 13 Effects 3 | . . . . 3 . . . . . . . . . . . . . . . Interference 3 | . . . . 3 . . . . . . . . . . . . . . . Siege Activations . | . . . . . . . . . . . . . . . . . . . . Robots Corrupted 1 | . . 1 . . . . . . . . . . . . . . . . . Combat Hostiles 1 | . . 1 . . . . . . . . . . . . . . . . . Parts Fried 7 | . . 2 2 1 . 2 . . . . . . . . . . . . . Impact Corruptions 2 | . . . . 1 . 1 . . . . . . . . . . . . . Robots Melted . | . . . . . . . . . . . . . . . . . . . . Combat Hostiles . | . . . . . . . . . . . . . . . . . . . . Parts Melted . | . . . . . . . . . . . . . . . . . . . . Heat Transferred 647 | . . 250 150 247 . . . . . . . . . . . . . . . Parts Sabotaged 2 | . . . . . . . . . . . . . . 2 . . . . . Parts Stolen . | . . . . . . . . . . . . . . . . . . . . Parts Stripped . | . . . . . . . . . . . . . . . . . . . . Power Chain Reactions 1 | . . 1 . . . . . . . . . . . . . . . . . Missiles Intercepted . | . . . . . . . . . . . . . . . . . . . . Alert | -11 -10 -9 -8 -7 -7 -7 -6 -6 -6 -5 -5 -5 -5 -5 -4 -3 -2 -1 -1 ------- Run | Scr Mat Mat Mat Fac Was Fac Fac Was Fac Fac Ext Cet Arc Hub Fac Res Res Acc Com Peak Influence 1153 | . 310 577 519 943 360 832 640 224 959 484 660 928 591 303 270 162 345 675 1153 Average Influence 490 | . 123 321 373 640 347 542 465 224 557 477 538 674 543 251 228 144 205 404 836 Maximum Alert Level 4 | . 1 2 2 3 1 3 2 1 3 2 2 3 2 1 1 . 1 2 4 Low Security (%) 9 | 100 72 25 . . . . . . 4 . . . . . 29 100 40 . . Level 1 32 | . 27 49 48 24 100 37 31 100 26 . 9 9 9 100 70 . 59 51 . Level 2 35 | . . 24 51 18 . 23 68 . 40 100 90 34 90 . . . . 48 30 Level 3 22 | . . . . 56 . 39 . . 28 . . 55 . . . . . . 58 Level 4 . | . . . . . . . . . . . . . . . . . . . 10 Level 5 . | . . . . . . . . . . . . . . . . . . . . High Security . | . . . . . . . . . . . . . . . . . . . . Max Security . | . . . . . . . . . . . . . . . . . . . . Squads Dispatched 33 | . 1 4 2 4 . 3 6 . 4 1 . . . 1 1 . 1 2 3 Investigation 5 | . . 1 . 1 . . . . 1 . . . . . . . 1 . 1 Extermination 4 | . . . . 1 . 1 1 . . . . . . . . . . 1 . Reinforcement 20 | . 1 3 1 2 . 2 4 . 3 1 . . . . 1 . . . 2 Assault 2 | . . . . . . . 1 . . . . . . 1 . . . . . Garrison 2 | . . . 1 . . . . . . . . . . . . . . 1 . Intercept . | . . . . . . . . . . . . . . . . . . . . Construction Impeded 3 | . . 1 . 1 . . . . 1 . . . . . . . . . . Haulers Reinforced 4 | . . . . 1 . 1 2 . . . . . . . . . . . . Stealth | -11 -10 -9 -8 -7 -7 -7 -6 -6 -6 -5 -5 -5 -5 -5 -4 -3 -2 -1 -1 --------- Run | Scr Mat Mat Mat Fac Was Fac Fac Was Fac Fac Ext Cet Arc Hub Fac Res Res Acc Com Distress Signals 8 | . 1 2 . . . . . . 1 . 1 2 . . . . . . 1 Communications Jammed . | . . . . . . . . . . . . . . . . . . . . Distress Signals . | . . . . . . . . . . . . . . . . . . . . Times Spotted 265 | . 16 21 12 30 5 10 17 . 12 1 25 20 4 10 4 1 6 19 52 Peak Tracking Total 17 | . 5 7 4 6 6 1 6 . 4 . 5 6 3 7 2 1 2 6 17 Tactical Retreats 16 | . 1 3 . 1 . . 4 . . . 2 . . . . . . 1 4 Traps | -11 -10 -9 -8 -7 -7 -7 -6 -6 -6 -5 -5 -5 -5 -5 -4 -3 -2 -1 -1 ------- Run | Scr Mat Mat Mat Fac Was Fac Fac Was Fac Fac Ext Cet Arc Hub Fac Res Res Acc Com Traps Triggered 21 | . . . 1 2 . 1 2 . 1 . 7 . . . . . 1 1 5 Indirectly . | . . . . . . . . . . . . . . . . . . . . Trap Hack Attempts . | . . . . . . . . . . . . . . . . . . . . Triggered . | . . . . . . . . . . . . . . . . . . . . Disarmed . | . . . . . . . . . . . . . . . . . . . . Reprogrammed . | . . . . . . . . . . . . . . . . . . . . Reused . | . . . . . . . . . . . . . . . . . . . . Traps Extracted . | . . . . . . . . . . . . . . . . . . . . Installed . | . . . . . . . . . . . . . . . . . . . . Triggered . | . . . . . . . . . . . . . . . . . . . . Machines | -11 -10 -9 -8 -7 -7 -7 -6 -6 -6 -5 -5 -5 -5 -5 -4 -3 -2 -1 -1 ---------- Run | Scr Mat Mat Mat Fac Was Fac Fac Was Fac Fac Ext Cet Arc Hub Fac Res Res Acc Com Machines Disabled 25 | . 2 1 . 11 . . . . 3 . 5 1 . . . . . 2 . Max in Single Turn 6 | . 1 1 . 6 . . . . . . 1 1 . . . . . 1 . Garrison Access 1 | . . . . . . . . . . . . . . 1 . . . . . Machines Sabotaged . | . . . . . . . . . . . . . . . . . . . . Garrisons Compromised . | . . . . . . . . . . . . . . . . . . . . Overloaded Fab Kills . | . . . . . . . . . . . . . . . . . . . . Fab Network Shutdowns 1 | . . . . . . 1 . . . . . . . . . . . . . Hacking | -11 -10 -9 -8 -7 -7 -7 -6 -6 -6 -5 -5 -5 -5 -5 -4 -3 -2 -1 -1 --------- Run | Scr Mat Mat Mat Fac Was Fac Fac Was Fac Fac Ext Cet Arc Hub Fac Res Res Acc Com Machines Accessed 6 | . . 1 . . . 1 . . . . 2 1 1 . . . . . . Terminals 3 | . . . . . . . . . . . 2 1 . . . . . . . Fabricators 1 | . . . . . . 1 . . . . . . . . . . . . . Repair Stations . | . . . . . . . . . . . . . . . . . . . . Recycling Units 1 | . . 1 . . . . . . . . . . . . . . . . . Scanalyzers . | . . . . . . . . . . . . . . . . . . . . Garrison Access . | . . . . . . . . . . . . . . . . . . . . Total Hacks 33 | . . 4 . . . 1 . . . . 2 1 25 . . . . . . Successful 27 | . . . . . . 1 . . . . . 1 25 . . . . . . Failed 6 | . . 4 . . . . . . . . 2 . . . . . . . . Catastrophic 1 | . . . . . . . . . . . 1 . . . . . . . . Database Lockouts . | . . . . . . . . . . . . . . . . . . . . Manual 4 | . . . . . . . . . . . . 3 . 1 . . . . . Terminals 3 | . . . . . . . . . . . 2 1 . . . . . . . Fabricators 1 | . . . . . . 1 . . . . . . . . . . . . . Repair Stations . | . . . . . . . . . . . . . . . . . . . . Recycling Units 4 | . . 4 . . . . . . . . . . . . . . . . . Scanalyzers . | . . . . . . . . . . . . . . . . . . . . Garrison Access . | . . . . . . . . . . . . . . . . . . . . Terminal Hacks 26 | . . . . . . . . . . . . 1 25 . . . . . . Record 26 | . . . . . . . . . . . . 1 25 . . . . . . Fabricator Hacks 1 | . . . . . . 1 . . . . . . . . . . . . . Build 1 | . . . . . . 1 . . . . . . . . . . . . . Repair Station Hacks . | . . . . . . . . . . . . . . . . . . . . Recycling Unit Hacks . | . . . . . . . . . . . . . . . . . . . . Scanalyzer . | . . . . . . . . . . . . . . . . . . . . Garrison Access Hacks . | . . . . . . . . . . . . . . . . . . . . Unauthorized Hacks . | . . . . . . . . . . . . . . . . . . . . Terminals . | . . . . . . . . . . . . . . . . . . . . Fabricators . | . . . . . . . . . . . . . . . . . . . . Repair Stations . | . . . . . . . . . . . . . . . . . . . . Recycling Units . | . . . . . . . . . . . . . . . . . . . . Scanalyzers . | . . . . . . . . . . . . . . . . . . . . Garrison Access . | . . . . . . . . . . . . . . . . . . . . Data Cores Recovered 2 | . . . . . . 2 . . . . . . . . . . . . . Used . | . . . . . . . . . . . . . . . . . . . . Hacking Detections 5 | . . 1 . . . 1 . . . . 1 1 . 1 . . . . . Full Trace Events 1 | . . 1 . . . . . . . . . . . . . . . . . Feedback Events . | . . . . . . . . . . . . . . . . . . . . Feedback Blocked . | . . . . . . . . . . . . . . . . . . . . Robot Schematics Acquired . | . . . . . . . . . . . . . . . . . . . . Robots Built . | . . . . . . . . . . . . . . . . . . . . Matter . | . . . . . . . . . . . . . . . . . . . . Time . | . . . . . . . . . . . . . . . . . . . . Total Robot Build Rating . | . . . . . . . . . . . . . . . . . . . . Part Schematics Acquired . | . . . . . . . . . . . . . . . . . . . . Parts Built 1 | . . . . . . 1 . . . . . . . . . . . . . Matter 190 | . . . . . . 190 . . . . . . . . . . . . . Time 47 | . . . . . . 47 . . . . . . . . . . . . . Total Part Build Rating 5 | . . . . . . 5 . . . . . . . . . . . . . Parts Repaired . | . . . . . . . . . . . . . . . . . . . . Time . | . . . . . . . . . . . . . . . . . . . . Parts Recycled . | . . . . . . . . . . . . . . . . . . . . Recycled Matter . | . . . . . . . . . . . . . . . . . . . . Retrieved Matter . | . . . . . . . . . . . . . . . . . . . . Retrieved Components . | . . . . . . . . . . . . . . . . . . . . Parts Scanalyzed . | . . . . . . . . . . . . . . . . . . . . Part Schematics Acquired . | . . . . . . . . . . . . . . . . . . . . Parts Damaged . | . . . . . . . . . . . . . . . . . . . . Bothacking | -11 -10 -9 -8 -7 -7 -7 -6 -6 -6 -5 -5 -5 -5 -5 -4 -3 -2 -1 -1 ------------ Run | Scr Mat Mat Mat Fac Was Fac Fac Was Fac Fac Ext Cet Arc Hub Fac Res Res Acc Com Used RIF Installer . | . . . . . . . . . . . . . . . . . . . . Robots Hacked . | . . . . . . . . . . . . . . . . . . . . Non-combat . | . . . . . . . . . . . . . . . . . . . . Combat . | . . . . . . . . . . . . . . . . . . . . Robot Hacks Applied . | . . . . . . . . . . . . . . . . . . . . Relay Couplers Released 1 | . . . . . . . . . . . . . . 1 . . . . . Machine Destruction 1 | . . . . . . . . . . . . . . 1 . . . . . Robots Rewired . | . . . . . . . . . . . . . . . . . . . . Allies Hacked . | . . . . . . . . . . . . . . . . . . . . Hacks Repelled . | . . . . . . . . . . . . . . . . . . . . Allies | -11 -10 -9 -8 -7 -7 -7 -6 -6 -6 -5 -5 -5 -5 -5 -4 -3 -2 -1 -1 -------- Run | Scr Mat Mat Mat Fac Was Fac Fac Was Fac Fac Ext Cet Arc Hub Fac Res Res Acc Com Total Allies 34 | . . . . . . . . 20 . . 9 5 . . . . . . . Largest Group 20 | . . . . . . . . 20 20 1 8 6 5 . . . . . . Highest-Rated Group 710 | . . . . . . . . 710 710 25 357 591 497 . . . . . . Highest-Rated Ally 156 | . . . . . . . . 50 50 25 156 150 121 . . . . . . Total Orders . | . . . . . . . . . . . . . . . . . . . . Ally Attacks 164 | . . . . . . . . . 63 8 56 29 8 . . . . . . Total Damage 4664 | . . . . . . . . . 1666 121 1263 1320 294 . . . . . . Kills 35 | . . . . . . . . . 19 . 7 8 1 . . . . . . Allies Corrupted 4 | . . . . . . . . . 3 . 1 . . . . . . . . Allies Melted . | . . . . . . . . . . . . . . . . . . . . Intel | -11 -10 -9 -8 -7 -7 -7 -6 -6 -6 -5 -5 -5 -5 -5 -4 -3 -2 -1 -1 ------- Run | Scr Mat Mat Mat Fac Was Fac Fac Was Fac Fac Ext Cet Arc Hub Fac Res Res Acc Com Robot Analysis Total . | . . . . . . . . . . . . . . . . . . . . Derelict Logs Recovered . | . . . . . . . . . . . . . . . . . . . . Drone Launches . | . . . . . . . . . . . . . . . . . . . . Drone Recoveries . | . . . . . . . . . . . . . . . . . . . . Exploration | -11 -10 -9 -8 -7 -7 -7 -6 -6 -6 -5 -5 -5 -5 -5 -4 -3 -2 -1 -1 ------------- Run | Scr Mat Mat Mat Fac Was Fac Fac Was Fac Fac Ext Cet Arc Hub Fac Res Res Acc Com Turns Passed 5035 | 41 181 260 212 774 25 544 352 148 283 78 515 253 62 72 133 60 277 337 428 Spaces Moved 8803 | 37 132 231 340 1225 74 1092 589 218 479 192 914 443 166 144 326 181 619 716 685 Core 8 | 5 3 . . . . . . . . . . . . . . . . . . Treads . | . . . . . . . . . . . . . . . . . . . . Legs . | . . . . . . . . . . . . . . . . . . . . Wheels 101 | 32 69 . . . . . . . . . . . . . . . . . . Hover . | . . . . . . . . . . . . . . . . . . . . Flight 8694 | . 60 231 340 1225 74 1092 589 218 479 192 914 443 166 144 326 181 619 716 685 Fastest Speed 21 | 50 40 37 37 34 34 21 28 28 28 28 26 26 26 26 26 23 23 26 26 Average Speed 30 | 93 71 37 37 34 34 31 28 28 28 28 26 26 26 26 26 23 25 26 28 Slowest Speed 117 | 100 100 40 117 40 34 37 28 28 100 28 28 26 26 28 26 26 100 28 105 Overloaded Moves 16 | . . . . . . 16 . . . . . . . . . . . . . Propulsion Burnouts . | . . . . . . . . . . . . . . . . . . . . Robots Hopped 23 | . . 3 1 11 . 1 . 1 . . 2 . . . . . . 4 . Cave-ins Triggered 1 | . . . . . . . . . . . . . . . . 1 . . . Exploration Rate (%) 38 | 4 31 23 34 33 96 34 17 88 22 7 84 91 93 28 9 6 17 22 23 Regions Visited 19 Branch Regions 5 Pre-discovered Areas . | . . . . . . . . . . . . . . . . . . . . Known Exits Taken 12 | . . . 1 . . 1 . . 1 1 1 1 1 1 1 1 1 1 . Unknown Exits Taken 3 | 1 1 1 . . . . . . . . . . . . . . . . . Scrap Searched . | . . . . . . . . . . . . . . . . . . . . Spaces Dug 37 | . . . . . . . . . . . 18 . . . 1 6 1 3 8 Terrain Destroyed 206 | . 24 51 20 74 . . . . . . 18 . . . 1 6 1 3 8 Melee 37 | . . . . . . . . . . . 18 . . . 1 6 1 3 8 Projectile 3 | . . . . 3 . . . . . . . . . . . . . . . AOE 166 | . 24 51 20 71 . . . . . . . . . . . . . . . Actions | -11 -10 -9 -8 -7 -7 -7 -6 -6 -6 -5 -5 -5 -5 -5 -4 -3 -2 -1 -1 --------- Run | Scr Mat Mat Mat Fac Was Fac Fac Was Fac Fac Ext Cet Arc Hub Fac Res Res Acc Com Total 10612 | 41 184 329 384 1462 73 1250 729 304 618 215 1126 563 180 175 367 193 719 822 878 Wait 672 | . . 21 6 107 . 96 61 83 68 12 43 57 2 5 . 1 38 33 39 Move 8742 | 36 131 224 337 1204 73 1089 589 215 478 191 910 442 165 143 325 179 618 708 685 Hop 20 | . . 3 1 10 . 1 . 1 . . 1 . . . . . . 3 . Pick Up 66 | 1 3 4 . 8 . 1 6 1 4 2 3 5 1 3 4 1 5 4 10 Fast Attach 75 | 4 3 3 6 13 . 7 3 . 5 3 1 1 . 3 3 1 6 3 10 Attach 26 | . . 2 . 5 . 1 3 . 2 2 1 . . 1 . 2 2 1 4 Detach 26 | . 2 . 4 6 . . 1 . 3 . . . . 1 1 1 3 . 4 Swap 13 | . . 3 1 4 . 3 . . . . . . . . . . 1 . 1 Drop 116 | . 5 6 2 19 . 8 7 1 8 4 5 3 1 3 6 1 11 8 18 Fire 137 | . 36 37 18 46 . . . . . . . . . . . . . . . Melee 278 | . . . . 5 . 17 33 . 11 1 64 21 5 2 8 6 21 41 43 Ram . | . . . . . . . . . . . . . . . . . . . . Kick . | . . . . . . . . . . . . . . . . . . . . Crush . | . . . . . . . . . . . . . . . . . . . . Escape Stasis 138 | . . . . . . 18 8 . 18 . 52 . . . . 1 . . 41 Rewire . | . . . . . . . . . . . . . . . . . . . . Trap . | . . . . . . . . . . . . . . . . . . . . Miscellaneous 303 | . 4 26 9 35 . 9 18 3 21 . 46 34 6 14 20 . 14 21 23 Route ------- -11/Scrapyard -10/Materials -9/Materials -8/Materials (discovered 2 exits: *Fac / [*Sto]) -7/Factory (discovered 2 exits: *Low x2) -7/Waste -7/Factory (discovered 2 exits: *Fac x2) -6/Factory -6/Waste -6/Factory -5/Factory (discovered 2 exits: [Upp] / *Ext) -5/Extension (discovered 2 exits: *Fac / *Cet) -5/Cetus (discovered 2 exits: *Fac / *Arc) -5/Archives (discovered 3 exits: *Fac / *Hub x2) -5/Hub_04(d) (discovered 3 exits: *Fac x3) -4/Factory -3/Research -2/Research -1/Access -1/Command (discovered 1 exit: [Sur]) History --------- Turn | Location | Event 1 | -11/Scrapyard | Upgraded with Weapon slot (x1) 7 | -11/Scrapyard | Discovered new exit (range 18) 42 | -11/Scrapyard | Entered Materials 182 | -10/Materials | Discovered new exit (range 15) 213 | -10/Materials | Destroyed 7 combat bots 223 | -10/Materials | Entered another Materials area 225 | -9/Materials | Reached level 2 226 | -9/Materials | Upgraded with Propulsion slot (x1) 226 | -9/Materials | Upgraded with Weapon slot (x1) 261 | -9/Materials | Core integrity fell below 50% 290 | -9/Materials | Reached level 3 341 | -9/Materials | Upgraded with Utility slot (x1) 341 | -9/Materials | Upgraded with Weapon slot (x1) 430 | -9/Materials | Reached level 4 468 | -9/Materials | Destroyed 10 combat bots 470 | -9/Materials | Discovered new exit (range 16) 483 | -9/Materials | Entered another Materials area 485 | -8/Materials | Reached level 5 485 | -8/Materials | Upgraded with Weapon slot (x1) 559 | -8/Materials | Upgraded with Utility slot (x1) 636 | -8/Materials | Build established: Scout 656 | -8/Materials | Discovered new exit (range 9) 664 | -8/Materials | Discovered new exit (range 16) 665 | -8/Materials | Identified exit to Factory 675 | -8/Materials | Garrison activated, responded to threat 695 | -8/Materials | Entered Factory 697 | -7/Factory | Reached level 6 698 | -7/Factory | Upgraded with Propulsion slot (x1) 781 | -7/Factory | Reached level 7 904 | -7/Factory | Upgraded with Utility slot (x1) 954 | -7/Factory | Reached level 8 956 | -7/Factory | Upgraded with Utility slot (x1) 972 | -7/Factory | Discovered new exit (range 6) 973 | -7/Factory | Identified exit to Lower Caves 1086 | -7/Factory | Core integrity fell below 50% 1298 | -7/Factory | Discovered exit to Lower Caves (range 12) 1469 | -7/Factory | Manually triggered Chute Trap 1469 | -7/Factory | Sucked down chute 1469 | -7/Factory | Entered Waste 1471 | -7/Waste | Reached level 9 1473 | -7/Waste | Spotted C-40 Crusher 1475 | -7/Waste | Spotted C-40 Crusher 1477 | -7/Waste | Spotted C-40 Crusher 1478 | -7/Waste | Spotted C-40 Crusher 1481 | -7/Waste | Spotted C-40 Crusher 1481 | -7/Waste | Spotted C-40 Crusher 1490 | -7/Waste | Discovered new exit (range 13) 1494 | -7/Waste | Identified exit to Factory 1494 | -7/Waste | Entered Factory 1694 | -7/Factory | Fabricated Adv. Melee Analysis Suite (x1) 1699 | -7/Factory | Local fabrication network quarantined 1727 | -7/Factory | Upgraded with Propulsion slot (x1) 1749 | -7/Factory | Discovered new exit (range 24) 2031 | -7/Factory | Discovered new exit (range 16) 2036 | -7/Factory | Identified exit to Factory 2038 | -7/Factory | Entered another Factory area 2040 | -6/Factory | Reached level 10 2040 | -6/Factory | Upgraded with Utility slot (x1) 2060 | -6/Factory | Found Prototype Processor 2107 | -6/Factory | Identified Exp. Targeting Computer 2268 | -6/Factory | Reached level 11 2278 | -6/Factory | Upgraded with Power slot (x1) 2388 | -6/Factory | First assault squad dispatched 2390 | -6/Factory | Manually triggered Chute Trap 2390 | -6/Factory | Sucked down chute 2390 | -6/Factory | Entered Waste 2391 | -6/Waste | Joined by Warlord forces that had cleared the area 2462 | -6/Waste | Discovered new exit (range 17) 2500 | -6/Waste | Identified exit to Factory 2538 | -6/Waste | Entered Factory 2538 | -6/Factory | Accompanied by 20 allies 2625 | -6/Factory | Reached level 12 2631 | -6/Factory | Upgraded with Utility slot (x1) 2674 | -6/Factory | Reached level 13 2779 | -6/Factory | Discovered new exit (range 21) 2803 | -6/Factory | Reached level 14 2811 | -6/Factory | Upgraded with Utility slot (x1) 2819 | -6/Factory | Identified exit to Factory 2821 | -6/Factory | Entered another Factory area 2821 | -5/Factory | Accompanied by 1 ally 2823 | -5/Factory | Reached level 15 2869 | -5/Factory | Discovered new exit (range 15) 2888 | -5/Factory | Identified exit to Extension 2890 | -5/Factory | Discovered new exit (range 12) 2899 | -5/Factory | Entered Extension 2899 | -5/Extension | Accompanied by 1 ally 2919 | -5/Extension | Reached level 16 2923 | -5/Extension | Upgraded with Propulsion slot (x1) 2988 | -5/Extension | Destroyed 7 combat bots 3013 | -5/Extension | Rescued A7 3026 | -5/Extension | Rescued a captive Derelict 3028 | -5/Extension | Rescued a captive Derelict 3052 | -5/Extension | Rescued a captive Derelict 3053 | -5/Extension | Rescued a captive Derelict 3058 | -5/Extension | Rescued a captive Derelict 3060 | -5/Extension | Rescued a captive Derelict 3089 | -5/Extension | Spotted B-75 Beast 3091 | -5/Extension | Spotted B-75 Beast 3196 | -5/Extension | Discovered new exit (range 17) 3196 | -5/Extension | Discovered new exit (range 17) 3205 | -5/Extension | Reached level 17 3209 | -5/Extension | Disrupted transfer network 3214 | -5/Extension | Rescued a captive Derelict 3253 | -5/Extension | Rescued a captive Derelict 3345 | -5/Extension | Reached level 18 3405 | -5/Extension | Identified exit to Cetus 3406 | -5/Extension | Identified exit to Factory 3414 | -5/Extension | Entered Cetus 3414 | -5/Cetus | Accompanied by 1 ally 3419 | -5/Cetus | Acquired a Cetus Manufacturing Module code from A7 3420 | -5/Cetus | Spotted Cetus Guard 3420 | -5/Cetus | Spotted Cetus Guard 3420 | -5/Cetus | Spotted Cetus Guard 3420 | -5/Cetus | Spotted Cetus Guard 3437 | -5/Cetus | Destroyed Cetus Guard 3439 | -5/Cetus | Allies destroyed Cetus Guard 3440 | -5/Cetus | Destroyed Cetus Guard 3442 | -5/Cetus | Destroyed Cetus Guard 3467 | -5/Cetus | Started Cetus Manufacturing Module 3492 | -5/Cetus | Manufactured an Enhanced Grunt 3492 | -5/Cetus | Escorted A7 to Cetus Mainframe 3493 | -5/Cetus | Discovered new exit (range 22) 3511 | -5/Cetus | Reached level 19 3517 | -5/Cetus | Manufactured an Enhanced Grunt 3542 | -5/Cetus | Manufactured an Enhanced Grunt 3548 | -5/Cetus | Destroyed 7 combat bots 3552 | -5/Cetus | Spotted Cetus Guard 3552 | -5/Cetus | Spotted Cetus Guard 3552 | -5/Cetus | Spotted Cetus Guard 3552 | -5/Cetus | Spotted Cetus Guard 3567 | -5/Cetus | Manufactured an Enhanced Grunt 3583 | -5/Cetus | Allies destroyed Cetus Guard 3587 | -5/Cetus | Reached level 20 3587 | -5/Cetus | Allies destroyed Cetus Guard 3588 | -5/Cetus | Allies destroyed Cetus Guard 3591 | -5/Cetus | Allies destroyed Cetus Guard 3592 | -5/Cetus | Manufactured an Enhanced Grunt 3614 | -5/Cetus | Upgraded with Utility slot (x1) 3627 | -5/Cetus | Discovered exit to Factory (range 18) 3630 | -5/Cetus | Met Revision 17 3655 | -5/Cetus | Identified exit to Archives 3667 | -5/Cetus | Entered Archives 3667 | -5/Archives | Accompanied by 5 allies 3672 | -5/Archives | Received a hacking code to weaken MAIN.C 3679 | -5/Archives | Discovered new exit (range 18) 3680 | -5/Archives | Reached level 21 3684 | -5/Archives | Discovered new exit (range 18) 3703 | -5/Archives | Unable to access archive contents 3706 | -5/Archives | Unable to access archive contents 3707 | -5/Archives | Discovered exit to Factory (range 17) 3720 | -5/Archives | Identified exit to Hub_04(d) 3729 | -5/Archives | Entered Hub_04(d) 3762 | -5/Hub_04(d) | Discovered exit to Factory (range 7) 3774 | -5/Hub_04(d) | Upgraded with Utility slot (x1) 3775 | -5/Hub_04(d) | Discovered exit to Factory (range 23) 3778 | -5/Hub_04(d) | Spotted B-75 Beast 3786 | -5/Hub_04(d) | Discovered exit to Factory (range 7) 3801 | -5/Hub_04(d) | Entered Factory 3803 | -4/Factory | Reached level 22 3874 | -4/Factory | Discovered new exit (range 19) 3931 | -4/Factory | Identified exit to Research 3934 | -4/Factory | Entered Research 3936 | -3/Research | Reached level 23 3936 | -3/Research | Reached level 24 3936 | -3/Research | Upgraded with Propulsion slot (x1) 3967 | -3/Research | Discovered new exit (range 3) 3968 | -3/Research | Identified exit to Research 3972 | -3/Research | Spotted B-86 Titan 3982 | -3/Research | Crushed by falling debris 3994 | -3/Research | Entered another Research area 3996 | -2/Research | Reached level 25 4213 | -2/Research | Discovered new exit (range 16) 4250 | -2/Research | Reached level 26 4261 | -2/Research | Identified exit to Access 4271 | -2/Research | Entered Access 4273 | -1/Access | Reached level 27 4468 | -1/Access | Reached level 28 4470 | -1/Access | Upgraded with Utility slot (x1) 4482 | -1/Access | Spotted B-99 Colossus 4511 | -1/Access | Garrison activated, responded to threat 4594 | -1/Access | Discovered new exit (range 19) 4600 | -1/Access | Spotted B-99 Colossus 4600 | -1/Access | Spotted B-99 Colossus 4608 | -1/Access | Identified exit to Command 4608 | -1/Access | Entered Command 4610 | -1/Command | Reached level 29 4610 | -1/Command | Reached level 30 4644 | -1/Command | Reached level 31 4698 | -1/Command | Upgraded with Propulsion slot (x1) 4701 | -1/Command | Found Enh. Force Lance 4713 | -1/Command | Found Enh. Force Lance 4756 | -1/Command | Found Prototype Device 4756 | -1/Command | Identified EM Disruption Field 4788 | -1/Command | Reached level 32 4828 | -1/Command | Upgraded with Power slot (x1) 4894 | -1/Command | Spotted Executioner 4894 | -1/Command | Spotted Executioner 4894 | -1/Command | Spotted Striker 4894 | -1/Command | Spotted Alpha 7 4894 | -1/Command | Spotted Executioner 4894 | -1/Command | Spotted Executioner 4894 | -1/Command | Spotted Striker 4894 | -1/Command | Spotted Alpha 7 4910 | -1/Command | Destroyed Striker 4933 | -1/Command | Destroyed Striker 4937 | -1/Command | Destroyed Executioner 4971 | -1/Command | Core integrity fell below 50% 4990 | -1/Command | Spotted B-99 Colossus 4998 | -1/Command | Discovered new exit (range 15) 5026 | -1/Command | Core integrity fell below 20% 5036 | -1/Command | Destroyed by Alpha 7 with Multirail Last Messages --------------- 05030_ Field strength at 65. 05030_ Penetrated by Slug. 05030_ Slug penetrates Wall. 05031_ Field strength at 46. 05032_ Field strength at 41. 05032_ Slug penetrates H-88 Terminator. 05032_ Slug penetrates Wall. 05033_ Field strength at 29. 05033_ Penetrated by Slug. 05033_ Slug penetrates Wall. 05034_ Field strength at 2. 05035_ B-99 Colossus exits siege mode. 05035_ Stasis field depleted. 05035_ Slug penetrates Wall. 05035_ Penetrated by Slug. 05035_ Slug penetrates Reinforced Barrier. 05036_ Slug penetrates Wall. 05036_ Penetrated by Slug. [Achievement: 20k Club] [Achievement: Achiever] Map ----- +----------------------------------------------------+ | ????????????????#####?###########??##?????????#??? | | ??????????????? #?########?###########???????###?? | | ????????????? # ?####?######?########?#?#??#?##?#? | | ??????????? # ?######? #######???###?# | | ??????????#??##?####### ? ? #??####?##????# | | ????????? ? ?# #??#?## #########?##### | | ???????????"?? ####### """""" ############### | | ??????? T ######?### " ?"? #??############ | | ??????### ? ####?##### "